bitfinex/quotes_SOLUSD_20240825
["timestamp","ask_amount","ask_price","bid_price","bid_amount"]
[1724585183663,6.0537,157.52,157.43,45.0]
[1724585183827,6.0537,157.52,157.45,6.87323428]
[1724585184029,6.0537,157.52,157.44,6.87323428]
[1724585184227,6.0537,157.52,157.43,45.0]
[1724585184633,6.0537,157.52,157.44,6.87350644]
[1724585184832,6.0537,157.52,157.45,6.87350644]
[1724585185150,6.0537,157.52,157.46,6.87350644]
[1724585185351,6.0537,157.52,157.47,6.87350644]
[1724585185536,6.0537,157.52,157.48,8.14331271]
[1724585185872,6.0537,157.52,157.44,8.14332155]
[1724585186028,6.0537,157.52,157.45,6.87350644]
[1724585186227,6.0537,157.52,157.46,8.14331329]
[1724585186461,6.0537,157.52,157.47,6.87350644]
[1724585186635,6.0537,157.52,157.48,8.14331208]
[1724585186835,6.0537,157.52,157.49,6.87350644]
[1724585187042,6.0537,157.52,157.5,6.87350644]
[1724585187244,6.0537,157.52,157.45,6.87350644]
[1724585187568,6.0537,157.52,157.46,6.87350644]
[1724585187728,6.0537,157.52,157.47,6.87350644]
[1724585188159,6.0537,157.52,157.48,8.14331899]
[1724585188341,6.0537,157.52,157.49,6.87350644]
[1724585188545,6.0537,157.52,157.5,6.87350644]
[1724585188850,6.0537,157.52,157.44,6.87350644]
[1724585189035,6.0537,157.52,157.45,6.87350644]
[1724585189240,6.0537,157.52,157.46,6.87350644]
[1724585189458,6.0537,157.52,157.47,6.87350644]
[1724585189666,6.0537,157.52,157.48,6.87350644]
[1724585189834,6.0537,157.52,157.49,6.87350644]
[1724585190176,6.0537,157.52,157.5,6.87350644]
[1724585190332,6.0537,157.52,157.44,6.87350644]
[1724585190531,6.0537,157.52,157.45,6.87350644]
[1724585190754,6.0537,157.52,157.46,6.87350644]
[1724585190956,6.0537,157.52,157.47,6.87350644]
[1724585191162,6.0537,157.52,157.48,6.87350644]
[1724585191344,6.0537,157.52,157.49,6.87350644]
[1724585191654,6.0537,157.52,157.5,6.87350644]
[1724585191961,6.0537,157.52,157.44,6.87350644]
[1724585192256,6.0537,157.52,157.45,6.87350644]
[1724585192449,6.0537,157.52,157.46,6.87350644]
[1724585192657,6.0537,157.52,157.47,6.87350644]
[1724585192854,6.0537,157.52,157.48,6.87350644]
[1724585193031,6.0537,157.52,157.49,6.87350644]
[1724585193239,6.0537,157.52,157.5,6.87350644]
[1724585193455,6.0537,157.52,157.44,6.86912797]
[1724585193659,6.0537,157.52,157.45,6.86912797]
[1724585193957,6.0537,157.52,157.46,6.86912797]
[1724585193958,15.7264,157.51,157.46,6.86912797]
[1724585194160,15.7264,157.51,157.47,6.86912797]
[1724585194364,15.2264,157.51,157.43,6.60604203]
[1724585194661,15.2264,157.51,157.48,6.87024456]
[1724585194962,15.2264,157.51,157.49,6.87024456]
[1724585195159,15.2264,157.51,157.43,6.60604203]
[1724585195466,15.2264,157.51,157.44,6.87047345]
[1724585195761,15.2264,157.51,157.45,6.87047345]
[1724585195961,15.2264,157.51,157.46,6.87047345]
[1724585196160,15.2264,157.51,157.47,6.87047345]
[1724585196466,15.2264,157.51,157.48,6.87047345]
[1724585196764,15.2264,157.51,157.49,6.87047345]
[1724585196938,15.2264,157.51,157.43,6.60604203]
[1724585199368,15.2264,157.51,157.44,1.26998473]
[1724585202460,15.2264,157.51,157.45,3.94412692]
[1724585202677,15.2264,157.51,157.46,1.26989058]
[1724585202965,15.2264,157.51,157.44,1.26989044]
[1724585206674,15.2264,157.51,157.45,4.1486517]
[1724585206856,15.2264,157.51,157.43,6.60604203]
[1724585214275,15.2264,157.51,157.44,53.10735449]
[1724585216058,15.2264,157.51,157.44,51.83745875]
[1724585217544,15.2264,157.51,157.44,45.0]
[1724585218759,6.0537,157.52,157.44,60.5161]
[1724585218963,6.0537,157.52,157.45,1.2697506]
[1724585219151,6.0537,157.52,157.46,1.26962529]
[1724585219780,21.5265,157.56,157.46,28.52604515]
[1724585219978,21.5265,157.56,157.47,52.25641986]
[1724585220152,21.5265,157.56,157.48,1.26933548]
[1724585220501,21.5265,157.56,157.48,6.80755549]
[1724585220684,21.5265,157.56,157.51,7.8623736]
[1724585220977,21.5265,157.56,157.52,9.13170932]
[1724585221163,21.5265,157.56,157.52,1.26933572]
[1724585222071,21.5265,157.56,157.51,7.8623736]
[1724585222590,21.5265,157.56,157.52,1.26933636]
[1724585246899,21.5265,157.56,157.51,45.0]
[1724585248001,21.5265,157.56,157.52,1.26924506]
[1724585248486,21.5265,157.56,157.51,60.1255567]
[1724585248902,21.5265,157.56,157.52,1.26924536]
[1724585249475,21.5265,157.56,157.51,52.25641986]
[1724585249802,21.5265,157.56,157.51,60.12143444]
[1724585252498,21.5265,157.56,157.52,1.26924639]
[1724585254626,22.2112,157.6,157.52,16.38754281]
[1724585254912,22.2112,157.6,157.53,52.25641986]
[1724585255100,15.8491,157.74,157.53,52.25641986]
[1724585255101,6.3093,157.64,157.54,37.86433809]
[1724585255416,6.3093,157.64,157.55,79.06332314]
[1724585255706,6.3093,157.64,157.55,86.9251997]
[1724585256211,6.3093,157.64,157.56,20.0]
[1724585256409,6.3093,157.64,157.57,46.26863943]
[1724585257195,6.3093,157.64,157.58,6.8558918]
[1724585257506,6.3093,157.64,157.59,46.26864182]
[1724585258604,6.3093,157.64,157.59,76.26864182]
[1724585259803,6.3093,157.64,157.6,1.2686436]
[1724585260006,6.3093,157.64,157.61,1.26864552]
[1724585260707,6.3093,157.64,157.61,45.0]
[1724585260886,6.3093,157.64,157.61,75.0]
[1724585261627,6.3093,157.64,157.62,1.26856612]
[1724585262001,6.3093,157.64,157.62,31.26856612]
[1724585262416,6.3093,157.64,157.63,2.0217907]
[1724585263202,6.3093,157.64,157.62,30.0]
[1724585264426,6.3093,157.64,157.61,45.0]
[1724585265206,6.3093,157.64,157.62,30.0]
[1724585267015,6.3093,157.64,157.61,45.0]
[1724585268231,6.3093,157.64,157.62,5.72813044]
[1724585268721,6.3093,157.64,157.62,4.14058965]
[1724585270136,6.3093,157.64,157.63,1.26853355]
[1724585271130,6.3093,157.64,157.61,45.0]
[1724585271425,15.9019,157.65,157.61,45.0]
[1724585271629,6.6538,157.68,157.62,8.52495425]
[1724585271826,6.6538,157.68,157.63,45.0]
[1724585272009,6.6538,157.68,157.64,1.2682899]
[1724585272212,6.6538,157.68,157.65,1.26829515]
[1724585274435,6.6538,157.68,157.63,45.0]
[1724585274944,22.5766,157.68,157.63,45.0]
[1724585277447,22.5766,157.68,157.63,45.0]
[1724585281651,22.5766,157.68,157.64,1.26835031]
[1724585282156,22.5766,157.68,157.63,45.0]
[1724585285928,22.5766,157.68,157.62,7.25641986]
[1724585286148,22.5766,157.68,157.59,3.93170155]
[1724585286338,22.5766,157.68,157.6,45.0]
[1724585287253,22.5766,157.68,157.61,3.93154301]
[1724585287437,22.5766,157.68,157.62,45.0]
[1724585289327,22.5766,157.68,157.63,3.92975115]
[1724585289946,22.5766,157.68,157.63,3.92967492]
[1724585293079,22.5766,157.68,157.63,3.93108508]
[1724585296261,22.5766,157.68,157.62,45.0]
[1724585296565,22.5766,157.68,157.63,3.93096542]
[1724585296938,22.5766,157.68,157.64,1.26840686]
[1724585297135,22.5766,157.68,157.65,1.26838986]
[1724585297462,22.5766,157.68,157.63,3.93096542]
[1724585297638,22.5766,157.68,157.64,3.93096542]
[1724585297838,22.5766,157.68,157.63,3.93096542]
[1724585298040,22.5766,157.68,157.64,3.93096542]
[1724585298242,22.5766,157.68,157.63,3.93096542]
[1724585298441,22.5766,157.68,157.64,3.93096542]
[1724585298648,22.5766,157.68,157.63,3.93096542]
[1724585298843,22.5766,157.68,157.64,3.93096542]
[1724585299049,22.5766,157.68,157.63,3.93096542]
[1724585299244,22.5766,157.68,157.64,3.93096542]
[1724585299453,22.5766,157.68,157.65,5.19935669]
[1724585299639,22.5766,157.68,157.65,1.26839127]
[1724585300143,22.5766,157.68,157.66,3.93096542]
[1724585300961,22.5766,157.68,157.63,3.93096542]
[1724585301164,22.5766,157.68,157.64,3.93096542]
[1724585301469,22.5766,157.68,157.65,3.93096542]
[1724585301639,22.5766,157.68,157.66,3.93096542]
[1724585301842,22.5766,157.68,157.62,45.0]
[1724585302042,22.5766,157.68,157.63,3.93112596]
[1724585302356,22.5766,157.68,157.64,3.93112596]
[1724585302550,22.5766,157.68,157.65,3.93112596]
[1724585302859,22.5766,157.68,157.66,3.93112596]
[1724585303058,22.5766,157.68,157.62,45.0]
[1724585303369,22.5766,157.68,157.63,3.93112344]
[1724585303662,22.5766,157.68,157.64,3.93112344]
[1724585303974,22.5766,157.68,157.65,3.93112344]
[1724585304147,22.5766,157.68,157.66,3.93112344]
[1724585304454,22.5766,157.68,157.6,1.26853405]
[1724585304636,22.5766,157.68,157.61,5.19996786]
[1724585304842,22.5766,157.68,157.62,3.93143286]
[1724585305139,22.5766,157.68,157.63,3.93143286]
[1724585305365,22.5766,157.68,157.64,3.93143286]
[1724585305584,22.5766,157.68,157.65,3.93143286]
[1724585305871,22.5766,157.68,157.66,3.93143286]
[1724585306047,22.5766,157.68,157.6,45.0]
[1724585306553,22.5766,157.68,157.61,3.93143478]
[1724585306751,22.5766,157.68,157.62,5.19997058]
[1724585306971,22.5766,157.68,157.63,3.93143478]
[1724585307156,22.5766,157.68,157.64,3.93143478]
[1724585307347,22.5766,157.68,157.65,3.93143478]
[1724585307547,22.5766,157.68,157.66,3.93143478]
[1724585307772,22.5766,157.68,157.6,45.0]
[1724585307973,22.8156,157.67,157.61,3.93172796]
[1724585308268,22.8156,157.67,157.55,8.35247683]
[1724585308269,22.8156,157.67,157.62,3.93172796]
[1724585308447,22.8156,157.67,157.63,3.93172796]
[1724585308646,22.8156,157.67,157.55,5.53822001]
[1724585308964,22.8156,157.67,157.56,3.93423972]
[1724585309149,22.8156,157.67,157.57,3.93423972]
[1724585309351,29.1579,157.67,157.58,3.93423972]
[1724585309549,29.1579,157.67,157.59,3.93423972]
[1724585309774,29.1579,157.67,157.6,3.93423972]
[1724585309952,29.1579,157.67,157.61,3.93423972]
[1724585310152,29.1579,157.67,157.62,3.93423972]
[1724585310471,29.1579,157.67,157.56,3.93423972]
[1724585310677,29.1579,157.67,157.57,3.93423972]
[1724585310976,29.1579,157.67,157.58,3.93423972]
[1724585311176,29.1579,157.67,157.59,3.93423972]
[1724585311472,29.1579,157.67,157.6,3.93423972]
[1724585311665,29.1579,157.67,157.61,3.93423972]
[1724585311856,22.8156,157.67,157.62,3.93423972]
[1724585312052,22.8156,157.67,157.55,7.25641986]
[1724585312271,22.3156,157.67,157.56,50.20350571]
[1724585312483,22.3156,157.67,157.57,11.19106919]
[1724585312670,22.3156,157.67,157.58,5.20350783]
[1724585312970,22.3156,157.67,157.59,3.93464933]
[1724585313174,22.3156,157.67,157.6,5.20350809]
[1724585313375,22.3156,157.67,157.61,3.93464933]
[1724585313558,22.3156,157.67,157.62,3.93464933]
[1724585313758,22.3156,157.67,157.58,3.93468527]
[1724585313959,22.3156,157.67,157.59,5.20354393]
[1724585314172,22.3156,157.67,157.6,3.93468527]
[1724585314345,22.3156,157.67,157.61,3.93468527]
[1724585314548,22.3156,157.67,157.62,3.93468527]
[1724585314867,22.3156,157.67,157.6,3.93468527]
[1724585315045,22.3156,157.67,157.61,3.93468527]
[1724585315254,22.3156,157.67,157.62,3.93468527]
[1724585315467,22.3156,157.67,157.6,3.93468527]
[1724585315771,22.3156,157.67,157.61,3.93465956]
[1724585315978,22.3156,157.67,157.62,3.93465956]
[1724585316151,22.3156,157.67,157.6,3.93465956]
[1724585316352,22.3156,157.67,157.61,3.93465956]
[1724585316571,22.3156,157.67,157.62,3.93465956]
[1724585316778,22.3156,157.67,157.6,3.93465956]
[1724585316961,22.3156,157.67,157.61,3.93465956]
[1724585317159,22.3156,157.67,157.62,3.93465956]
[1724585317369,22.3156,157.67,157.6,3.93465956]
[1724585317670,22.3156,157.67,157.61,3.93465956]
[1724585317975,22.3156,157.67,157.62,3.93465956]
[1724585318174,22.3156,157.67,157.6,3.93465956]
[1724585318361,22.3156,157.67,157.61,3.93465956]
[1724585318565,22.3156,157.67,157.6,3.93465956]
[1724585318757,22.3156,157.67,157.61,3.93465956]
[1724585319065,22.3156,157.67,157.6,3.93618972]
[1724585319264,22.3156,157.67,157.61,3.93618972]
[1724585319465,22.3156,157.67,157.6,3.93618972]
[1724585319675,22.3156,157.67,157.61,3.93618972]
[1724585319984,22.3156,157.67,157.6,3.93618972]
[1724585320278,22.3156,157.67,157.61,3.93618972]
[1724585320480,22.3156,157.67,157.6,3.93618972]
[1724585320669,22.8156,157.67,157.61,3.93618972]
[1724585320872,22.8156,157.67,157.58,3.93618972]
[1724585321171,22.8156,157.67,157.59,3.93618972]
[1724585321382,22.8156,157.67,157.6,3.93618972]
[1724585321383,22.3156,157.67,157.6,3.93618972]
[1724585321554,22.3156,157.67,157.61,3.93618972]
[1724585321759,22.3156,157.67,157.62,5.20487393]
[1724585322065,22.3156,157.67,157.62,1.26868421]
[1724585322254,22.3156,157.67,157.63,3.9338808]
[1724585322481,22.3156,157.67,157.64,3.9338808]
[1724585322787,22.3156,157.67,157.63,3.9338808]
[1724585322962,22.3156,157.67,157.64,3.9338808]
[1724585323281,22.3156,157.67,157.65,2.02134404]
[1724585323457,22.3156,157.67,157.63,5.20247315]
[1724585323665,22.3156,157.67,157.63,1.26859235]
[1724585324149,22.3156,157.67,157.64,3.9338808]
[1724585324351,22.3156,157.67,157.65,5.20234525]
[1724585324551,22.3156,157.67,157.65,1.26846445]
[1724585325151,22.3156,157.67,157.65,5.20234525]
[1724585325356,22.3156,157.67,157.62,3.93207259]
[1724585325655,22.3156,157.67,157.63,5.20052971]
[1724585325856,22.3156,157.67,157.66,30.0]
[1724585328855,22.3156,157.67,157.63,30.0]
[1724585329161,22.3156,157.67,157.64,1.26845783]
[1724585329698,22.3156,157.67,157.65,3.93203262]
[1724585329860,22.3156,157.67,157.65,33.93203262]
[1724585330689,22.3156,157.67,157.65,30.0]
[1724585331068,6.5906,157.67,157.65,30.0]
[1724585331489,6.0164,157.7,157.66,1.26842429]
[1724585331870,6.0164,157.75,157.62,20.0]
[1724585332084,6.0164,157.75,157.63,1.26813155]
[1724585332287,6.0164,157.75,157.63,53.52455141]
[1724585332981,6.0164,157.75,157.65,30.0]
[1724585333163,6.0164,157.75,157.66,46.26814681]
[1724585334089,6.0164,157.75,157.66,45.0]
[1724585334294,6.0164,157.75,157.67,1.26810336]
[1724585334586,6.0164,157.75,157.68,1.26810134]
[1724585337275,6.0164,157.75,157.66,60.6104]
[1724585338473,6.0164,157.75,157.67,1.2680482]
[1724585338778,6.0164,157.75,157.68,1.26803026]
[1724585340381,6.0164,157.75,157.69,1.26797442]
[1724585341489,6.0164,157.75,157.67,1.26797357]
[1724585341691,6.0164,157.75,157.68,1.26797368]
[1724585343578,6.0268,157.79,157.68,1.26797368]
[1724585345092,0.5,157.78,157.66,80.6104]
[1724585345296,0.5,157.78,157.67,30.0]
[1724585345502,0.5,157.78,157.68,45.0]
[1724585346078,0.5,157.78,157.69,4.13304349]
[1724585346278,0.5,157.78,157.68,45.0]
[1724585346489,0.5,157.78,157.69,4.13304172]
[1724585347598,5.0629,157.74,157.66,15.6104]
[1724585347800,5.0629,157.74,157.67,49.13372735]
[1724585348008,5.0629,157.74,157.68,4.13372735]
[1724585348203,0.5,157.73,157.66,15.6104]
[1724585348509,0.5,157.73,157.63,14.10186301]
[1724585348688,0.5,157.73,157.63,18.23782046]
[1724585349091,45.5,157.73,157.63,18.23782046]
[1724585349414,45.5,157.73,157.6,6.58982036]
[1724585349908,22.0894,157.72,157.6,6.58982036]
[1724585350208,45.5,157.71,157.6,6.58982036]
[1724585350408,0.5,157.7,157.6,6.58982036]
[1724585352535,45.0,157.71,157.61,1.26869278]
[1724585352887,42.0894,157.72,157.61,1.26869278]
[1724585353089,42.0894,157.72,157.61,46.26869278]
[1724585353304,42.0894,157.72,157.62,4.13783832]
[1724585353513,42.0894,157.72,157.63,1.26841559]
[1724585353818,22.0894,157.72,157.63,1.26841559]
[1724585354800,22.0894,157.72,157.63,46.26841559]
[1724585354990,22.0894,157.72,157.64,4.13783832]
[1724585355190,22.0894,157.72,157.65,1.26835547]
[1724585355692,22.0894,157.72,157.64,4.13783832]
[1724585355898,22.0894,157.72,157.65,1.26825704]
[1724585358101,22.0894,157.72,157.64,10.9836117]
[1724585358615,5.0629,157.74,157.65,15.0187]
[1724585358915,5.0629,157.74,157.66,4.13724421]
[1724585359119,5.0629,157.74,157.67,1.26819844]
[1724585359413,5.0629,157.74,157.66,4.13724421]
[1724585359710,5.0629,157.74,157.67,45.0]
[1724585360110,5.0629,157.74,157.66,45.0]
[1724585360411,5.0629,157.74,157.67,4.1369536]
[1724585360629,5.0629,157.74,157.68,6.3805]
[1724585360787,5.0629,157.74,157.69,45.0]
[1724585360994,5.0629,157.74,157.7,5.40483132]
[1724585361211,5.0629,157.74,157.71,1.26787637]
[1724585361386,5.0629,157.74,157.71,31.26787637]
[1724585361886,5.0629,157.74,157.72,4.13262336]
[1724585362290,5.0629,157.74,157.73,1.26788454]
[1724585362710,5.0629,157.74,157.73,5.40007008]
[1724585363416,5.0629,157.74,157.73,35.40007008]
[1724585364091,5.0629,157.74,157.73,4.13218554]
[1724585364304,5.0629,157.74,157.72,4.13218554]
[1724585365096,5.0629,157.74,157.7,6.83997398]
[1724585365097,5.0629,157.74,157.7,4.13402258]
[1724585365290,5.0629,157.74,157.67,15.0759]
[1724585365498,5.0629,157.74,157.69,30.0]
[1724585366210,5.0629,157.74,157.7,4.13578556]
[1724585366718,5.0629,157.74,157.71,1.26793229]
[1724585367609,5.0629,157.74,157.7,10.98138474]
[1724585368123,5.0629,157.74,157.71,1.2678389]
[1724585368623,5.0629,157.74,157.69,10.98138474]
[1724585369204,5.0629,157.74,157.7,34.13578556]
[1724585369404,5.0629,157.74,157.71,4.13578556]
[1724585369599,5.0629,157.74,157.71,12.24892232]
[1724585370002,5.0629,157.74,157.71,5.4036226]
[1724585370208,5.0629,157.74,157.71,4.13578556]
[1724585370823,5.0629,157.74,157.69,10.98132617]
[1724585371025,5.0629,157.74,157.7,34.13578556]
[1724585371324,5.0629,157.74,157.71,4.13578556]
[1724585371505,5.0629,157.74,157.71,10.98086871]
[1724585372722,5.0629,157.74,157.72,1.267808]
[1724585375231,8.876,157.83,157.72,5.40330802]
[1724585375531,65.0,157.82,157.72,1.267808]
[1724585375833,65.0,157.82,157.71,5.40354165]
[1724585376411,8.876,157.83,157.71,5.40354165]
[1724585376412,8.876,157.83,157.72,1.26779286]
[1724585376616,8.876,157.83,157.72,46.26779286]
[1724585376812,8.876,157.83,157.73,4.13574876]
[1724585377132,8.876,157.83,157.74,1.26755161]
[1724585378541,15.1306,157.83,157.74,1.26755161]
[1724585380540,15.1306,157.83,157.74,31.26755161]
[1724585380915,15.1306,157.83,157.74,30.0]
[1724585382014,15.1306,157.83,157.75,1.26754838]
[1724585384708,15.1306,157.83,157.74,1.26754632]
[1724585385815,15.1306,157.83,157.71,1.26763404]
[1724585386011,15.1306,157.83,157.72,30.0]
[1724585386439,15.1306,157.83,157.73,1.26763325]
[1724585386738,15.1306,157.83,157.74,1.26763396]
[1724585387437,0.5,157.82,157.72,30.0]
[1724585387651,45.5,157.82,157.71,30.0]
[1724585388438,45.0,157.82,157.71,30.0]
[1724585388854,45.0,157.82,157.72,1.26778443]
[1724585389717,45.0,157.82,157.73,1.26778448]
[1724585390844,45.0,157.82,157.7,6.0049]
[1724585391046,0.5,157.81,157.71,46.58639341]
[1724585391218,0.5,157.81,157.71,45.0]
[1724585393926,45.0,157.82,157.71,45.0]
[1724585394547,45.0,157.82,157.72,1.26769157]
[1724585395743,45.0,157.82,157.71,45.0]
[1724585396128,45.0,157.82,157.72,1.26769149]
[1724585396649,45.0,157.82,157.73,1.26767885]
[1724585396842,45.0,157.82,157.71,45.0]
[1724585396843,15.1306,157.83,157.74,1.26761808]
[1724585397952,15.1306,157.83,157.72,1.26754641]
[1724585399557,15.1306,157.83,157.73,15.6982]
[1724585399724,22.259,157.87,157.74,46.26735234]
[1724585400687,22.259,157.87,157.74,54.10641922]
[1724585401932,22.259,157.87,157.75,30.0]
[1724585402121,22.259,157.87,157.76,46.26727194]
[1724585404153,22.259,157.87,157.76,76.26727194]
[1724585405777,0.5,157.86,157.76,30.0]
[1724585405948,45.5,157.86,157.76,30.0]
[1724585407375,45.0,157.86,157.77,1.26740854]
[1724585408065,22.259,157.87,157.77,1.26740854]
[1724585409155,0.8073251,157.93,157.78,16.3659]
[1724585409156,22.7403,157.91,157.78,16.3659]
[1724585409351,20.0,157.9,157.79,1.26706222]
[1724585409559,20.5,157.9,157.78,16.3659]
[1724585411475,0.5,157.89,157.78,16.3659]
[1724585411675,45.0,157.89,157.78,16.3659]
[1724585412174,45.0,157.89,157.79,1.26718959]
[1724585412376,45.0,157.89,157.78,16.3659]
[1724585412549,0.5,157.88,157.78,16.3659]
[1724585414193,45.0,157.89,157.78,16.3659]
[1724585414474,0.5,157.87,157.78,16.3659]
[1724585415070,45.0,157.89,157.79,1.26729676]
[1724585415282,0.5,157.88,157.78,16.3659]
[1724585416089,45.0,157.89,157.79,1.26732983]
[1724585417385,45.0,157.89,157.78,16.3659]
[1724585418075,0.5,157.88,157.78,16.3659]
[1724585419076,0.5,157.88,157.75,6.0342]
[1724585419287,22.7403,157.87,157.75,6.0342]
[1724585419462,65.5,157.86,157.75,6.0342]
[1724585420058,65.5,157.86,157.76,1.26754531]
[1724585420674,45.5,157.86,157.75,6.0342]
[1724585420879,45.0,157.86,157.75,7.3017474]
[1724585422063,0.5,157.85,157.75,6.0342]
[1724585422257,45.0,157.86,157.76,1.26754509]
[1724585423068,0.5,157.85,157.75,6.0342]
[1724585423258,44.5,157.86,157.76,1.26754495]
[1724585425167,22.7403,157.87,157.76,1.26748505]
[1724585425362,258.5659655,157.93,157.78,16.1924]
[1724585425363,21.8759,157.91,157.78,16.1924]
[1724585426068,0.8073251,157.93,157.8,6.6258]
[1724585426272,0.8073251,157.93,157.81,1.26699653]
[1724585426694,0.5,157.92,157.8,6.6258]
[1724585427589,0.8073251,157.93,157.81,1.26699784]
[1724585427894,0.8073251,157.93,157.82,16.1924]
[1724585428081,0.8073251,157.93,157.83,1.26690067]
[1724585428792,0.8073251,157.93,157.83,1.26681684]
[1724585428961,0.8073251,157.93,157.82,16.1924]
[1724585429571,0.8073251,157.93,157.83,1.26673761]
[1724585430276,0.8073251,157.93,157.83,46.26673761]
[1724585430475,0.8073251,157.93,157.84,22.8182]
[1724585430780,0.8073251,157.93,157.85,45.0]
[1724585432796,0.8073251,157.93,157.84,22.8182]
[1724585433772,0.5,157.92,157.84,22.8182]
[1724585434099,0.5,157.92,157.84,16.1924]
[1724585434468,0.8073251,157.93,157.84,16.1924]
[1724585436297,16.1097,157.92,157.81,16.1924]
[1724585436472,15.6097,157.92,157.81,16.1924]
[1724585436671,65.0,157.91,157.81,16.1924]
[1724585436893,0.5,157.9,157.81,16.1924]
[1724585437588,0.5,157.89,157.81,16.1924]
[1724585438395,65.0,157.91,157.81,16.1924]
[1724585439098,65.0,157.91,157.82,1.26715219]
[1724585439303,65.0,157.91,157.81,16.1924]
[1724585439304,0.5,157.9,157.81,16.1924]
[1724585440714,65.0,157.91,157.82,1.26709326]
[1724585441276,45.0,157.91,157.82,1.26709326]
[1724585442105,15.6097,157.92,157.81,16.1924]
[1724585443578,15.6097,157.92,157.82,2.01443208]
[1724585444311,45.0,157.91,157.81,16.1924]
[1724585444512,0.5,157.9,157.82,2.01447803]
[1724585447489,0.5,157.9,157.81,16.1924]
[1724585447791,45.0,157.91,157.81,16.1924]
[1724585447987,45.0,157.91,157.82,3.28051887]
[1724585448216,45.0,157.91,157.83,2.01326858]
[1724585449016,45.0,157.91,157.82,2.01326858]
[1724585449216,45.0,157.91,157.83,2.01326858]
[1724585449407,45.0,157.91,157.82,2.01326858]
[1724585449607,45.0,157.91,157.83,2.01326858]
[1724585450488,45.0,157.91,157.84,2.01326858]
[1724585450723,15.6097,157.92,157.84,2.01326858]
[1724585450922,0.5,157.91,157.84,2.01326858]
[1724585451216,0.5,157.91,157.82,6.4806]
[1724585451217,0.5,157.92,157.83,47.01219768]
[1724585451813,7.0735251,157.93,157.83,45.0]
[1724585452099,0.5,157.92,157.84,3.59757514]
[1724585452303,45.5,157.92,157.84,3.59757514]
[1724585452516,45.5,157.92,157.84,1.58548859]
[1724585453397,45.5,157.92,157.84,3.17097312]
[1724585453917,45.5,157.92,157.84,1.58548859]
[1724585454123,35.2125,157.91,157.84,1.58548859]
[1724585454325,45.5,157.9,157.84,1.58548859]
[1724585454528,0.5,157.89,157.84,1.58548859]
[1724585460703,45.0,157.9,157.84,1.58548859]
[1724585460913,0.5,157.89,157.84,1.58548859]
[1724585462613,7.0735251,157.93,157.84,1.58548859]
[1724585462809,20.5,157.92,157.84,1.58548859]
[1724585463612,0.5,157.92,157.84,1.58548859]
[1724585463809,45.5,157.92,157.84,1.58548859]
[1724585464008,45.5,157.92,157.83,15.762]
[1724585464715,0.5,157.92,157.83,15.762]
[1724585467639,0.5,157.92,157.84,6.0896]
[1724585468520,0.8073251,157.93,157.84,6.0896]
[1724585472438,0.8073251,157.93,157.86,15.8756]
[1724585473615,0.8073251,157.93,157.87,2.65205249]
[1724585473810,0.8073251,157.93,157.88,2.65205249]
[1724585474034,0.8073251,157.93,157.86,24.58159708]
[1724585474035,0.8073251,157.93,157.89,2.65205249]
[1724585474225,0.8073251,157.93,157.9,2.65205249]
[1724585474536,0.8073251,157.93,157.86,24.58159708]
[1724585474738,0.8073251,157.93,157.87,2.64938716]
[1724585474916,0.8073251,157.93,157.86,24.58159708]
[1724585474917,0.8073251,157.93,157.88,2.64938716]
[1724585475231,0.8073251,157.93,157.89,2.64938716]
[1724585475538,0.8073251,157.93,157.86,24.58159708]
[1724585475539,0.8073251,157.93,157.9,2.64938716]
[1724585475839,0.8073251,157.93,157.91,2.64938716]
[1724585476010,0.8073251,157.93,157.86,24.58159708]
[1724585476210,0.8073251,157.93,157.87,2.6483341]
[1724585476410,0.8073251,157.93,157.88,2.6483341]
[1724585476633,0.8073251,157.93,157.89,2.6483341]
[1724585476834,0.8073251,157.93,157.9,2.6483341]
[1724585477028,0.8073251,157.93,157.91,2.6483341]